Cogmind - Beta 17 @@@ ROGUE MODE // 2026.08.15 @ 20:24:41 Player: Fedop Result: Destroyed by LK-YQG(R) with Subdweller Machine Gun Performance ------------- Evolutions (0) 0 Regions Visited (3) 600 Robots Destroyed (9) 45 Value Destroyed (126) 126 Prototype IDs (2) 40 Alien Tech Used (0) 0 Bonus (0) 0 TOTAL SCORE: 811 Bonus ------- None Cogmind --------- Core Integrity 0/250 Matter 295/300 Energy 116/125 System Corruption 1% Temperature Cool (0) Movement Core (200) Ox3 Location -10/Subcaves Parts ------- > --- POWER (1) -------- Light Ion Engine > --- PROPULSION (2) --- Flight Unit > --- UTILITY (2) ------ Sensor Array Makeshift Light Armor Plating > --- WEAPON (2) ------- Subdweller Laser > --- INVENTORY (5) ---- Light Ion Engine Weight Redist. System Heavy Hammer Peak State ------------ > --- POWER ------------ Light Ion Engine > --- PROPULSION ------- Flight Unit Flight Unit > --- UTILITY ---------- Sensor Array Makeshift Light Armor Plating > --- WEAPON ----------- Subdweller Laser > --- INVENTORY -------- Light Ion Engine Weight Redist. System Heavy Hammer [Rating: 10] Favorites ----------- Power Light Ion Engine Engine Light Ion Engine Propulsion Flight Unit Wheel Compact Wheel Flight Unit Flight Unit Utility Sensor Array Device Sensor Array Processor Signal Interpreter Protection Core Shielding Weapon Small Laser Energy Gun Small Laser Launcher Rocket Launcher Impact Weapon Heavy Hammer Build | -11 -10 -10 -10 ------- Run | Yrd Mat Min Sub Slots Evolved . | . . . . Power . | . . . . Propulsion . | . . . . Utility . | . . . . Weapon . | . . . . Parts Attached 21 | 5 10 3 3 Power 4 | 1 2 1 . Engine 4 | 1 2 1 . Core . | . . . . Reactor . | . . . . Propulsion 7 | 2 3 1 1 Treads . | . . . . Leg . | . . . . Wheel 2 | 2 . . . Hover . | . . . . Flight 5 | . 3 1 1 Utility 4 | . 3 . 1 Device 1 | . 1 . . Storage . | . . . . Processor 1 | . 1 . . Hackware . | . . . . Protection 2 | . 1 . 1 Artifact . | . . . . Weapon 6 | 2 2 1 1 Energy Gun 4 | 2 1 . 1 Energy Cannon . | . . . . Ballistic Gun . | . . . . Ballistic Cannon . | . . . . Launcher 1 | . . 1 . Special Weapon . | . . . . Impact Weapon 1 | . 1 . . Slashing Weapon . | . . . . Piercing Weapon . | . . . . Special Melee Weapon . | . . . . Unidentified Prototypes . | . . . . Parts Lost 4 | . . 3 1 Power . | . . . . Propulsion 3 | . . 2 1 Utility . | . . . . Weapon 1 | . . 1 . Highest Loss Streak 3 | . . 3 1 To Critical Strikes . | . . . . Average Backups 3 | 1 4 4 2 Power . | . 1 1 1 Propulsion . | . . 2 . Utility . | . . 1 1 Weapon 1 | . 1 . . Tool/Special . | . . . . Unused Backups 4 | . 2 . 2 Power 1 | . . . 1 Propulsion . | . . . . Utility 1 | . . . 1 Weapon 2 | . 2 . . Tool/Special . | . . . . Average Slot Usage (%) 87 | . 88 88 78 Engine 14 | . 14 14 14 Wheel 10 | . 18 . . Flight 17 | . 8 28 26 Device 9 | . 6 14 14 Processor 8 | . 6 14 6 Protection 3 | . 4 . 7 Energy Gun 14 | . 22 5 3 Launcher 2 | . . 6 . Impact Weapon 5 | . 5 5 6 Peak Build Rating 10 | 5 8 9 10 Average Rating 6 | 3 6 7 8 On Entrance 4 | . 5 7 4 Avg Prop Armor Cover (%) . | . . . . Naked Turns . | . . . . Heaviest Build 12 | 5 9 11 12 Greatest Support 26 | 26 26 8 8 Greatest Overweight (x) 3 | . 1 1 3 Average Overweight (x) . | . . . . Largest Inventory Capacity 5 | 5 5 5 5 Average Capacity 5 | 5 5 5 5 Most Carried 5 | 2 5 5 3 Average Carried 4 | 1 4 4 2 Final Capacity 5 | 5 5 5 5 Final Carried 5 | 2 5 4 3 Class Distribution -------------------- 100% | Mutant Dominant Class ---------------- Mutant | -10/Materials Mutant | -10/Mines Mutant | -10/Subcaves Resources | -11 -10 -10 -10 ----------- Run | Yrd Mat Min Sub Matter Collected 511 | 175 154 132 50 Remotely . | . . . . Salvage Created 187 | . 168 19 . Parts 15 | . 10 5 . Haulers Intercepted . | . . . . Recyclers Shooed . | . . . . Parts Field Recycled . | . . . . Retrieved Matter . | . . . . Parts Self-Destructed . | . . . . Prevented . | . . . . Parts Restored . | . . . . Kills | -11 -10 -10 -10 ------- Run | Yrd Mat Min Sub Combat Hostiles Destroyed 7 | . 4 3 . Melee 1 | . . 1 . Guns 4 | . 4 . . AOE 2 | . . 2 . Classes Destroyed 4 | . 4 . . Recycler 1 | . 1 . . Watcher 1 | . 1 . . Swarmer 6 | . 3 3 . Grunt 1 | . 1 . . Best Kill Streak 4 | . 4 3 . Combat Bots Only 3 | . 3 3 . Max Kills in Single Turn 2 | . 1 2 . Gunslinging . | . . . . Exploded 2 | . . 2 . Melee 1 | . . 1 . Uniques/NPCs Destroyed . | . . . . Combat | -11 -10 -10 -10 -------- Run | Yrd Mat Min Sub Hostile Shots Fired 47 | . 22 14 11 Missed 12 | . 8 1 3 Hits 35 | . 14 13 8 Projectile 35 | . 14 13 8 AOE 6 | . . 6 . Critical Strikes 1 | . . . 1 Damage Taken 660 | . 169 335 156 Core 266 | . 36 166 64 Absorbed by Shields . | . . . . Core Remaining (%) 100 | 100 . . . Volleys Fired 20 | . 13 1 6 Largest 2 | . 2 1 1 Hottest 80 | . 80 33 60 Shots Fired 31 | . 24 1 6 Gun 30 | . 24 . 6 Cannon . | . . . . Launcher 1 | . . 1 . Special . | . . . . Kinetic . | . . . . Thermal 30 | . 24 . 6 Explosive 1 | . . 1 . Electromagnetic . | . . . . Robot Hit Streak 5 | . 4 2 5 Robot Miss Streak 3 | . 2 . 3 Penetration Max . | . . . . Secondary Targets . | . . . . Shots Hit Robots 20 | . 15 2 3 Core Hits 7 | . 5 2 . Critical Kills . | . . . . Critical Parts Destroyed 1 | . 1 . . Critical Strikes 1 | . 1 . . Smash 1 | . 1 . . Melee Attacks 22 | . 6 16 . Impact 22 | . 6 16 . Slashing . | . . . . Piercing . | . . . . Sneak Attacks 1 | . 1 . . Combat Hostiles . | . . . . Follow-up Attacks . | . . . . Damage Inflicted 601 | . 330 207 64 Guns 195 | . 131 . 64 Cannons . | . . . . Explosions 155 | . . 155 . Melee 251 | . 199 52 . Ramming . | . . . . Kinetic . | . . . . Thermal 195 | . 131 . 64 Explosive 155 | . . 155 . Electromagnetic . | . . . . Impact 251 | . 199 52 . Slashing . | . . . . Piercing . | . . . . Highest Corruption 1 | . 1 1 1 Average Corruption 1 | . 1 1 1 Corruption Purged . | . . . . Corruption Blocked . | . . . . Effects 2 | . 1 1 . Message Errors 1 | . 1 . . Heat Flow Errors 1 | . . 1 . Overload Shots . | . . . . Overflow Damage 85 | . 53 32 . Projectiles . | . . . . Explosions . | . . . . Melee 85 | . 53 32 . Knockbacks 1 | . 1 . . Impact 1 | . 1 . . Kinetic . | . . . . Secondary . | . . . . Self-Inflicted Damage 20 | . . 20 . Shots 1 | . . 1 . Rammed . | . . . . Targets Rammed . | . . . . Kicked . | . . . . Crushed . | . . . . Highest Temperature 273 | . 72 273 3 Average Temperature 63 | . 29 188 3 Received Heat Transfer 72 | . 48 18 6 Siege Activations . | . . . . Martial Activations . | . . . . Shielding Activations . | . . . . Robots Disrupted . | . . . . Combat Hostiles . | . . . . Robots Corrupted 2 | . 2 . . Combat Hostiles . | . . . . Parts Fried 3 | . 3 . . Impact Corruptions 4 | . 3 1 . Robots Melted . | . . . . Combat Hostiles . | . . . . Parts Melted . | . . . . Heat Transferred 375 | . 300 . 75 Parts Sabotaged . | . . . . Parts Stolen . | . . . . Parts Stripped . | . . . . Power Chain Reactions . | . . . . Alert | -11 -10 -10 -10 ------- Run | Yrd Mat Min Sub Maximum Alert Level . | . . . . Low Security (%) 100 | 100 100 100 . Level 1 . | . . . . Level 2 . | . . . . Level 3 . | . . . . Level 4 . | . . . . Level 5 . | . . . . High Security . | . . . . Max Security . | . . . . Peak Influence 107 | . 107 98 . Initial 33 | . . 33 . Average 41 | . 38 54 . Influence Increases 393 | . 257 136 . Destroy 0b10 Robot/C 140 | . 80 60 . Destroy 0b10 Robot/NC 10 | . 10 . . Destroy Leader 32 | . 22 10 . Successful Hack 23 | . 23 . . Disable Machine 15 | . 15 . . Destroy Structure 23 | . 2 21 . Lose Combat Pursuer 150 | . 105 45 . Influence Decreases 393 | . 170 194 29 Entered New Map 70 | . . 54 16 Time Decay 293 | . 170 110 13 Lost Part 30 | . . 30 . Squads Dispatched 3 | . 3 . . Investigation 2 | . 2 . . Extermination . | . . . . Reinforcement 1 | . 1 . . Assault . | . . . . Garrison . | . . . . Intercept . | . . . . Searches Triggered . | . . . . Construction Impeded . | . . . . Haulers Reinforced . | . . . . Active Scanning Responses . | . . . . Cargo Convoy Interrupts . | . . . . Stealth | -11 -10 -10 -10 --------- Run | Yrd Mat Min Sub Distress Signals 3 | . 3 . . Communications Jammed . | . . . . Distress Signals . | . . . . Times Spotted 30 | . 19 8 3 Peak Tracking Total 14 | . 6 14 3 Tactical Retreats 7 | . 4 3 . Traps | -11 -10 -10 -10 ------- Run | Yrd Mat Min Sub Traps Triggered 3 | . 3 . . Indirectly . | . . . . Trap Hack Attempts . | . . . . Triggered . | . . . . Disarmed . | . . . . Reprogrammed . | . . . . Reused . | . . . . Traps Extracted . | . . . . Installed . | . . . . Triggered . | . . . . Machines | -11 -10 -10 -10 ---------- Run | Yrd Mat Min Sub Machines Disabled 1 | . 1 . . Max in Single Turn 1 | . 1 . . Machines Repaired . | . . . . Machines Dismantled . | . . . . Machines Sabotaged . | . . . . Overloaded Fab Kills . | . . . . Hacking | -11 -10 -10 -10 --------- Run | Yrd Mat Min Sub Machines Accessed 5 | . 5 . . Terminals 5 | . 5 . . Fabricators . | . . . . Repair Stations . | . . . . Recycling Units . | . . . . Scanalyzers . | . . . . Garrison Access . | . . . . Total Hacks 22 | . 22 . . Successful 8 | . 8 . . Failed 14 | . 14 . . Catastrophic 3 | . 3 . . Database Lockouts . | . . . . Manual 17 | . 17 . . Terminals 22 | . 22 . . Fabricators . | . . . . Repair Stations . | . . . . Recycling Units . | . . . . Scanalyzers . | . . . . Garrison Access . | . . . . Terminal Hacks 4 | . 4 . . Prototype ID Bank 1 | . 1 . . Terminal Index 1 | . 1 . . Hauler Manifests 1 | . 1 . . Registered Components 1 | . 1 . . Fabricator Hacks . | . . . . Repair Station Hacks . | . . . . Recycling Unit Hacks . | . . . . Scanalyzer . | . . . . Garrison Access Hacks . | . . . . Unauthorized Hacks 4 | . 4 . . Terminals 4 | . 4 . . Botnet 4 | . 4 . . Fabricators . | . . . . Repair Stations . | . . . . Recycling Units . | . . . . Scanalyzers . | . . . . Garrison Access . | . . . . Data Cores Recovered . | . . . . Used . | . . . . Hacking Detections 5 | . 5 . . Full Trace Events 1 | . 1 . . Feedback Events . | . . . . Feedback Blocked . | . . . . Robot Schematics Acquired . | . . . . Robots Built . | . . . . Authchips . | . . . . Time . | . . . . Total Robot Build Rating . | . . . . Part Schematics Acquired . | . . . . Parts Built . | . . . . Authchips . | . . . . Time . | . . . . Total Part Build Rating . | . . . . Part Studies Acquired . | . . . . Parts Repaired . | . . . . Time . | . . . . Parts Recycled . | . . . . Recycled Matter . | . . . . Retrieved Matter . | . . . . Retrieved Components . | . . . . Parts Scanalyzed . | . . . . Part Schematics Acquired . | . . . . Parts Damaged . | . . . . Bothacking | -11 -10 -10 -10 ------------ Run | Yrd Mat Min Sub Used RIF Installer . | . . . . Robots Hacked . | . . . . Non-combat . | . . . . Combat . | . . . . Robot Hacks Applied . | . . . . Relay Couplers Released . | . . . . Fabnet Peak Effective % . | . . . . Robots Rewired . | . . . . Allies Hacked . | . . . . Hacks Repelled . | . . . . Allies | -11 -10 -10 -10 -------- Run | Yrd Mat Min Sub Total Allies . | . . . . Largest Group . | . . . . Highest-Rated Group . | . . . . Highest-Rated Ally . | . . . . Total Orders . | . . . . Ally Attacks . | . . . . Total Damage . | . . . . Kills . | . . . . Allies Corrupted . | . . . . Allies Melted . | . . . . Intel | -11 -10 -10 -10 ------- Run | Yrd Mat Min Sub Active Infowar (turns) 505 | . 185 235 85 Sensors 505 | . 185 235 85 Robot Analysis Total . | . . . . Derelict Logs Recovered 1 | . . 1 . Drone Launches . | . . . . Drone Recoveries . | . . . . Exploration | -11 -10 -10 -10 ------------- Run | Yrd Mat Min Sub Turns Passed 763 | 53 390 235 85 Spaces Moved 1036 | 49 456 460 71 Core 5 | 2 2 . 1 Treads . | . . . . Legs . | . . . . Wheels 254 | 47 207 . . Hover . | . . . . Flight 777 | . 247 460 70 Fastest Speed 37 | 50 37 37 37 Average Speed 53 | 88 62 37 73 Slowest Speed 200 | 100 120 117 200 Overloaded Moves . | . . . . Propulsion Burnouts . | . . . . Robots Hopped 3 | . . 3 . Potential Cave-ins . | . . . . Cave-ins Triggered . | . . . . Exploration Rate (%) 32 | 3 52 71 3 Regions Visited 3 Branch Regions 2 Pre-discovered Areas 2 | . . 2 . Known Exits Taken 2 | . 1 1 . Unknown Exits Taken 1 | 1 . . . Scrap Searched 3 | . . 1 2 Spaces Dug 13 | . 2 11 . Terrain Destroyed 31 | . 2 29 . Melee 13 | . 2 11 . Projectile . | . . . . AOE 18 | . . 18 . Terrain Rammed . | . . . . Walls Destroyed . | . . . . Machines Disabled . | . . . . Actions | -11 -10 -10 -10 --------- Run | Yrd Mat Min Sub Total 1170 | 55 526 491 98 Wait 37 | . 16 8 13 Move 1028 | 48 455 454 71 Hop 2 | . . 2 . Pick Up 10 | 2 8 . . Fast Attach 17 | 5 8 2 2 Attach 4 | . . 2 2 Detach 3 | . 1 1 1 Swap 11 | . 7 2 2 Drop 16 | . 12 3 1 Fire 20 | . 13 1 6 Melee 22 | . 6 16 . Ram . | . . . . Kick . | . . . . Crush . | . . . . Escape Stasis . | . . . . Rewire . | . . . . Trap . | . . . . Miscellaneous . | . . . . Route ------- -11/Scrapyard -10/Materials (discovered 3 exits: [*Mat] / *Min x2) -10/Mines (discovered 3 exits: [*Mat x2] / *Sub) -10/Subcaves History --------- Turn | Location | Event 23 | -11/Scrapyard | Discovered new exit (range 16) 54 | -11/Scrapyard | Entered Materials 343 | -10/Materials | Discovered new exit (range 5) 347 | -10/Materials | Build established: Mutant 383 | -10/Materials | Discovered new exit (range 13) 440 | -10/Materials | Discovered new exit (range 7) 444 | -10/Materials | Identified exit to Mines 444 | -10/Materials | Entered Mines 476 | -10/Mines | Discovered new exit (range 9) 485 | -10/Mines | Received a Rocket Launcher from a helpful Derelict 501 | -10/Mines | Discovered new exit (range 10) 586 | -10/Mines | Learned location of Storage (-9) 653 | -10/Mines | Assembled infested the area 674 | -10/Mines | Discovered new exit (range 11) 677 | -10/Mines | Core integrity fell below 50% 679 | -10/Mines | Core integrity fell below 20% 679 | -10/Mines | Identified exit to Subcaves 679 | -10/Mines | Entered Subcaves 680 | -10/Subcaves | Approached by a straggling Scientist 708 | -10/Subcaves | Lost 3 parts (2n1w) 733 | -10/Subcaves | Disturbed a concealed Subdweller 764 | -10/Subcaves | Destroyed by LK-YQG(R) with Subdweller Machine Gun Last Messages --------------- At least I think I can... The group I got separated from was talking about a shortcut back to the UFD." 00707_ Searching scrap... 00707_ Found Mak. Light Armor Plating. 00707_ Found Sub. Laser. 00707_ Found 59 Matter. 00708_ Acquired 20 matter. 00708_ Searching scrap... 00708_ Found Sub. Optics. 00708_ Found 45 Matter. 00710_ Acquired Sub. Laser. 00712_ Discarded Signal Interpreter. 00712_ Acquired Mak. Light Armor Plating. 00723_ Acquired 30 matter. A7-T3P(c): "I think it's somewhere south of here" 00753_ JH-BDU(R) emerges from the Twisted Machinery. 00755_ Flight Unit destroyed. Map ----- +----------------------------------------------------+ | ?????????????????????????????????????????????????? | | ?????????????????????????????????????????????????? | | ?????????????????????????????????????????????????? | | ?????????????????????????????????????????????????? | | ?????????????????????????????????????????????????? | | ?????????????????????????????????????????????????? | | ?????????????????????????????????????????????????? | | ?????????????????????????????????????????????????? | | ?????????????????????????????????????????????????? | | ???????????????????#######???????????????????????? | | ???????????????????#" !"#???????????????????????? | | ???????????????????#&##%%#???????????????????????? | | ???????????????????# ######?????????????????????? | | ???????????????????## "#### ########?????????????? | | ???????????????????## ## # ###???????????? | | ??????????????????##< < # ????????????? | | ??????????????????# ## #???????????????? | | ??????????????????## ## #???????????????? | | ???????????????????# #### ###???????????????? | | ???????????????????## R##??# ##????????????????? | | ????????????????????# ##### ##???????????????? | | ????????????????????## #???????????????? | | ????????????????????# #???????????????? | | ????????????????????# # ##???????????????? | | ????????????????????## ######????????????????? | | ????????????????????## #@ ##???????????????????? | | ??????????????# # ## ##??????????????????? | | ??????????????# #??????????????????? | | ??????????????## ##??????????????????? | | ???????????????# ####???????????????????? | | ?????????????# R ###??????????????????????? | | ?????????????### #????????????????????????? | | ???????????????# ????????????????????????? | | ???????????????## ????????????????????????? | | ????????????????# ## ????????????????????????? | | ????????????????# ?# ????????????????????????? | | ????????????????## "?## ?#???????????????????????? | | ?????????????????# ???"" ????????????????????????? | | ?????????????????#???? " ????????????????????????? | | ??????????????????????# ????????????????????????? | | ???????????????????????? ????????????????????????? | | ???????????????????????? ????????????????????????? | | ???????????????????????? ????????????????????????? | | ?????????????????????????????????????????????????? | | ?????????????????????????????????????????????????? | | ?????????????????????????????????????????????????? | | ?????????????????????????????????????????????????? | | ?????????????????????????????????????????????????? | | ?????????????????????????????????????????????????? | | ?????????????????????????????????????????????????? | +----------------------------------------------------+ Best States ------------- Heat Dissipation 25 Energy Generation 10 Energy Capacity 125 Matter Stores 300 Matter Capacity 300 Sight Range 16 Robot Scan Range 14 Terrain Scan Density 10 Armor Coverage 100 Core Shielding 20 Evasion (%) 62 Item Schematics ----------------- None Robot Schematics ------------------ None Fabricated ------------ Nothing Repaired ---------- Nothing Studied --------- None Alien Tech Used ----------------- None Achievements -------------- None Challenges ------------ None Game ------ Seed HardenedNovaCleaver Manual? 0 Play Time 00:36:58 Cumulative 52.6 hours Start 2026.08.15 @ 17:58:04 End 2026.08.15 @ 20:24:41 Sessions 1 Manual Loads 0 Difficulty Rogue Special Mode None Game No. 38 Rogue 38 Adventurer 0 Explorer 0 Win Type - Total 0 Types 0/0/0/0/0/0/0/0/0/0 Lore% 14 Gallery% 30 Achievement% 25 Wizard Run 0 Options --------- Layout 1 ASCII 0 Keyboard 1 Movement Vi Keybinds 0 Fullscreen 2 Font 24/Smallcaps Map View 50x35 Zoom Use 0% Tactical HUD 1 Map Filters NONE Filters NONE Steam 1 RUN: 8a17732d-9888-401d-b058-72cf811ed350